{"text_format":"3","workbook":"xlsx","n_sheets":3,"sheets":["Nutzungsbedingungen","RAUFRIGO","Anlage"],"not_rendered":{"images":5,"defined_names":7},"read":"whole","date_system":"1900"}

{"sheet":"Nutzungsbedingungen","index":0,"n_rows":11,"n_cols":22,"rows_kept":11,"merged":[[3,1,3,9],[4,1,4,9],[5,1,5,9],[6,1,6,9],[7,1,7,9],[8,1,8,9],[9,1,9,9],[11,1,11,9],[12,1,12,9],[13,1,13,9],[14,1,14,9],[15,1,15,9],[16,1,16,9],[17,1,17,9],[18,1,18,9]]}
[{"$nulls":21},{"$f":"HLOOKUP(RAUFRIGO!$AR$1,RAUFRIGO!$AQ$2:$BZ$999,38,0)","v":"Nutzungsbedingungen"}]
[]
[]
[null,{"$f":"HLOOKUP(RAUFRIGO!$AR$1,RAUFRIGO!$AQ$2:$BZ$999,45,0)","v":"REHAU SOFTWARE INDUSTRIEROHRSYSTEM RAUFRIGO"}]
[null,{"$f":"HLOOKUP(RAUFRIGO!$AR$1,RAUFRIGO!$AQ$2:$BZ$999,46,0)","v":"Haftungsausschluss"}]
[null,{"$f":"HLOOKUP(RAUFRIGO!$AR$1,RAUFRIGO!$AQ$2:$BZ$999,47,0)","v":"Copyright © 2013"}]
[null,{"$f":"HLOOKUP(RAUFRIGO!$AR$1,RAUFRIGO!$AQ$2:$BZ$999,48,0)","v":"Alle Daten innerhalb dieser Webseite/Software sind urheberrechtlich geschützt und dürfen nicht ohne Zustimmung der Rechteinhaber verwendet werden. Die durch das Urheberrecht begründeten Rechte, insbesondere die der Übersetzung, des Nachdruckes, der Entnahme von Abbildungen, der Funksendungen, der Wiedergabe auf fotomechanischem oder ähnlichem Wege und der Speicherung in Datenverarbeitungsanlagen, bleiben vorbehalten."}]
[null,{"$f":"HLOOKUP(RAUFRIGO!$AR$1,RAUFRIGO!$AQ$2:$BZ$999,49,0)","v":"Kontakt: info@rehau.com "}]
[null,{"$f":"HLOOKUP(RAUFRIGO!$AR$1,RAUFRIGO!$AQ$2:$BZ$999,50,0)","v":"Datenschutz: Alle innerhalb dieser Webseite vom Anwender eingegebenen und verarbeiteten Daten werden vertraulich gem. § 5 BDSG behandelt und nicht an Dritte weitergegeben. Die Daten werden nur zur Bearbeitung der Anfragen benutzt. "}]
[null,{"$f":"HLOOKUP(RAUFRIGO!$AR$1,RAUFRIGO!$AQ$2:$BZ$999,51,0)","v":"Die Webseite/Software wird von den Herausgebern kostenlos zur Verfügung gestellt. Die Herausgeber übernehmen keinerlei Gewähr für die Aktualität, Korrektheit, zu Grunde gelegte Berechnungsformeln, Berechnungsergebnisse, Vollständigkeit oder Qualität der bereitgestellten Informationen. Haftungsansprüche gegen die Herausgeber und Autoren, die sich auf Schäden materieller oder ideeler Art beziehen, welche durch die Nutzung der dargebotenen Informationen bzw. durch Nutzung fehlerhafter oder unvollständiger Informationen verursacht wurden, sind grundsätzlich ausgeschlossen, sofern seitens der Herausgeber und Autoren kein nachweislich vorsätzliches oder grob fahrlässiges Verschulden vorliegt. Die Herausgeber behalten es sich ausdrücklich vor, Teile der Seiten oder den gesamten Inhalt ohne gesonderte Ankündigung zu verändern, zu ergänzen oder die Veröffentlichung zeitweise oder endgültig einzustellen. Aus der Veröffentlichung kann nicht entnommen werden, dass die verwendeten Bezeichnungen frei von Rechten Dritter sind. Sofern auf Verweisziele („Links“) direkt oder indirekt verwiesen wird, die außerhalb des Verantwortungsbereichs des Herausgebers/Autoren liegen, haften diese allenfalls dann, wenn sie von den Inhalten Kenntnis hatten, und es ihnen technisch möglich und zumutbar wäre, die Nutzung im Falle rechtswidriger Inhalte zu verhindern. Für darüber hinausgehende Inhalte und insbesondere für Schäden, die aus der Nutzung oder Nichtnutzung solcherart dargebotener Informationen entstehen, haftet allein der Anbieter dieser Seiten, nicht derjenige, der über Links auf die jeweilige Veröffentlichung lediglich verweist. Dieser Haftungsausschluss ist als Teil des Internetangebots dieser Seite / dieses Softwareangebots zu betrachten. Sofern Teile oder einzelne Formulierungen dieses Textes der geltenden Rechtslage nicht, nicht mehr oder nicht vollständig entsprechen sollten, bleiben die übrigen Teile des Dokuments in ihrem Inhalt und ihrer Gültigkeit davon unberührt."}]
[null,null,{"$f":"HLOOKUP(RAUFRIGO!$AR$1,RAUFRIGO!$AQ$2:$BZ$999,52,0)","v":"Nutzungsbedingungen akzeptieren"},{"$nulls":6},{"$f":"RAUFRIGO!AD5","v":0}]

{"sheet":"RAUFRIGO","index":1,"n_rows":64,"n_cols":52,"rows_kept":64,"merged":[[3,3,3,7],[5,4,5,6],[6,2,7,3],[7,12,7,13],[32,34,32,38],[33,35,33,38],[34,35,34,38],[35,35,35,38],[36,35,36,38],[37,35,37,38],[38,35,38,38],[39,35,39,38],[40,35,40,38]]}
[{"$nulls":38},1,{"$f":"AR2","v":"Deutsch"},1,null,"Sprache",{"$f":"VLOOKUP(AO1,AM1:AN9,2,FALSE)","v":"Deutsch"}]
[null,null,{"$f":"HLOOKUP($AR$1,$AQ$2:$BZ$999,2,0)","v":"RAUFRIGO DRUCKVERLUSTBERECHNUNG"},{"$nulls":31},{"$f":"HLOOKUP($AR$1,$AQ$2:$BZ$999,55,0)","v":"Benutzerdefiniert"},{"$f":"E8","v":100},{"$f":"G8","v":5},null,2,{"$f":"AS2","v":"English"},null,null,"Original","Deutsch","English","Italiano","Français","Español","Türkçe","Русский","Polski","汉语"]
[{"$nulls":34},{"$f":"AJ3&\" x \"&AK3&\"     \"&AL3","v":"63 x 5,8     SDR  11"},63,5.8,"SDR  11",3,{"$f":"AT2","v":"Italiano"},null,null,"RAUFRIGO DRUCKVERLUSTBERECHNUNG","RAUFRIGO DRUCKVERLUSTBERECHNUNG","RAUFRIGO PRESSURE LOSS CALCULATOR","RAUFRIGO CALCOLO DELLA PERDITA DI PRESSIONE","RAUFRIGO CALCUL DES PERTES DE CHARGES","RAUFRIGO CALCULADORA PARA PERDIDA DE PRESIÓN","RAUFRIGO BASINÇ KAYBI HESABI","РАСЧЕТ ПОТЕРЬ ДАВЛЕНИЯ СИСТЕМЫ RAUFRIGO","RAUFRIGO OBLICZANIE SPADKU CIŚNIENIA","RAUFRIGO压力损失计算"]
[null,null,{"$f":"HLOOKUP($AR$1,$AQ$2:$BZ$999,3,0)","v":"Rohrleitungsabschnitt:"},{"$nulls":6},{"$f":"HLOOKUP($AR$1,$AQ$2:$BZ$999,25,0)","v":"Medium:"},{"$nulls":8},"Re*k/d<65   (HERMANN)",{"$f":"0.0054+(0.396/(M6^0.3))","v":{"v":0.018467952725988453,"d":"0.01847"}},{"$nulls":14},{"$f":"AJ4&\" x \"&AK4&\"     \"&AL4","v":"75 x 6,8     SDR  11"},75,6.8,"SDR  11",4,{"$f":"AU2","v":"Français"},null,null,"Rohrleitungsabschnitt:","Rohrleitungsabschnitt:","Pipe section:","Tratto di tubazione:","Tronçon du réseau :","Selección de tubo:","Boru devresi kısmı:","участок трубопровода","Odcinek instalacji:","管段："]
[{"$nulls":18},"65<Re*k/d<1300   (PRANDTL COLEBROOK)",{"$f":"Anlage!D15","v":{"v":0.01888674103152595,"d":"0.01889"}},{"$nulls":14},"90 x 5,4     SDR  17",90,5.4,"SDR  17",5,{"$f":"AV2","v":"Español"},null,null,"RAUFRIGO - Dimension Basisrohr","RAUFRIGO - Dimension Basisrohr","RAUFRIGO - Dimensions base pipe","RAUFRIGO - tipo di tubo interno","RAUFRIGO - Dimension du tube caloporteur","RAUFRIGO - Dimensiones de tubo base","RAUFRIGO - Akışkan taşıyıcı borunun çapı","RAUFRIGO размеры базовой трубы","RAUFRIGO - Wymiary rury bazowej","RAUFRIGO基管尺寸"]
[null,null,{"$f":"HLOOKUP($AR$1,$AQ$2:$BZ$999,4,0)","v":"RAUFRIGO - Dimension Basisrohr"},null,"110 x 6,6     SDR  17",{"$nulls":4},{"$f":"HLOOKUP($AR$1,$AQ$2:$BZ$999,26,0)","v":"Reynoldszahl:"},"Re","=",{"$f":"IFERROR((M13*(G10-2*G11)/G16/1000*1000000),0)","v":{"v":86754.51855486212,"d":"86,755"}},{"$nulls":5},"Re*k/d>1300   (NIKURADSE)",{"$f":"(1/((2*LOG((G10-G11-G11)/0.007))+1.14))^2","v":{"v":0.011265613780301444,"d":"0.01127"}},{"$nulls":14},"110 x 6,6     SDR  17",110,6.6,"SDR  17",6,{"$f":"AW2","v":"Türkçe"},null,null,"Rohraussendurchmesser:","Rohraussendurchmesser:","Outer pipe diameter:","Diametro esterno:","Diamètre extérieur du tube caloporteur :","Diámetro exterior de tubo:","Boru dış çapı:","наружный диаметр трубы","Średnica zewnętrzna rury","管外径："]
[null,null,{"$f":"IF(AJ26=1,AI23,\"\")","v":""},{"$nulls":31},"125 x 7,4     SDR  17",125,7.4,"SDR  17",7,{"$f":"AX2","v":"Русский"},null,null,"Wandstärke:","Wandstärke:","Wall thickness:","Spessore del tubo:","Epaisseur :","Espesor de pared:","Et kalınlığı:","толщина стенки:","Grubość ścianki:","壁厚："]
[{"$nulls":4},100,"x",{"v":5,"d":"5.0"},"[mm]",null,null,{"$f":"IF(M6<2320,\"Re < 2320\",\"Re > 2320\")","v":"Re > 2320"},null,{"$f":"IF(M6<2320,HLOOKUP($AR$1,$AQ$2:$BZ$999,40,0),HLOOKUP($AR$1,$AQ$2:$BZ$999,41,0))","v":"turbulente Strömung"},{"$nulls":21},"160 x 9,5     SDR  17",160,9.5,"SDR  17",8,{"$f":"AY2","v":"Polski"},null,null,"Volumenstrom:","Volumenstrom:","Flow rate by volume:","Portata in volume:","Débit :","Velocidad de flujo por volúmen:","Hacim debisi:","массовый расход","Przepływ","体流量："]
[{"$nulls":9},{"$f":"HLOOKUP($AR$1,$AQ$2:$BZ$999,27,0)","v":"Rohrreibungszahl:"},"l",null,{"$f":"IFERROR(IF((M6*0.007/(G10-G11-G11))<65,T4,IF((M6*0.007/(G10-G11-G11))<1300,T5,T6)),0)","v":{"v":0.018467952725988453,"d":"0.01847"}},{"$nulls":21},"180 x 10,7     SDR  17",180,10.7,"SDR  17",9,{"$f":"AZ2","v":"汉语"},null,null,"Rohrlänge:","Rohrlänge:","Pipe length:","Lunghezza del tubo:","Longueur du tronçon  :","Lontigud de tubo:","Boru uzunluğu:","длина трубопровода:","Długość rury","管长："]
[null,null,{"$f":"HLOOKUP($AR$1,$AQ$2:$BZ$999,5,0)","v":"Rohraussendurchmesser:"},null,"da","=",{"$f":"VLOOKUP(E6,AI2:AL14,2,FALSE)","v":110},"[mm]",null,null,{"$f":"IFERROR((IF((M6*0.007/(G10-G11-G11))<65,HLOOKUP($AR$1,$AQ$2:$BZ$999,42,0),IF((M6*0.007/(G10-G11-G11))<1300,HLOOKUP($AR$1,$AQ$2:$BZ$999,43,0),HLOOKUP($AR$1,$AQ$2:$BZ$999,44,0)))),0)","v":"hydraulisch glattes Rohr"},{"$nulls":23},"225 x 13,4     SDR  17",225,13.4,"SDR  17",{"$nulls":4},"Temperatur:","Temperatur:","Temperature:","Temperatura del fluido:","Température :","Temperatura:","Sıcaklık:","температура:","Temperatura:","温度："]
[null,null,{"$f":"HLOOKUP($AR$1,$AQ$2:$BZ$999,6,0)","v":"Wandstärke:"},null,"s","=",{"$f":"VLOOKUP(E6,AI2:AL14,3,FALSE)","v":6.6},"[mm]",null,{"$f":"IFERROR((M6*0.007/(G10-G11-G11)),0)","v":{"v":6.273570556653252,"d":"6.3  ="}},{"$f":"IFERROR((IF((M6*0.007/(G10-G11-G11))<65,S4,IF((M6*0.007/(G10-G11-G11))<1300,S5,S6))),0)","v":"Re*k/d<65   (HERMANN)"},"=",{"$nulls":22},"250 x 14,8     SDR  17",250,14.8,"SDR  17",{"$nulls":4},"Dichte:","Dichte:","Density:","Densità del fluido:","Densité:","Densidad:","Yoğunluk:","плотность:","Gęstość:","密度："]
[null,null,{"$f":"HLOOKUP($AR$1,$AQ$2:$BZ$999,7,0)","v":"Volumenstrom:"},null,"V","=",{"v":10,"d":"10.0"},"[l/s]",null,{"$f":"HLOOKUP($AR$1,$AQ$2:$BZ$999,28,0)","v":"Rohrreibungsgefälle:"},"R","=",{"$f":"IFERROR((M9*G15*(M13^2)/(G10-2*G11)/2/10^-3*1000),0)","v":{"v":176.13310320042112,"d":"176"}},"[Pa/m]",{"$nulls":20},"280 x 16,6     SDR  17",280,16.6,"SDR  17",{"$nulls":4},"kinematische Viskosität:","kinematische Viskosität:","Kinematic viscosity:","Viscosità cinematica:","Viscosité cinématique :","Viscosidad cinemática:","Kinematik viskozite:","кинематическая вязкость","Lepkość kinematyczna","运动黏度："]
[null,null,{"$f":"HLOOKUP($AR$1,$AQ$2:$BZ$999,8,0)","v":"Rohrlänge:"},null,"l","=",100,"[m]",null,{"$f":"HLOOKUP($AR$1,$AQ$2:$BZ$999,29,0)","v":"Geschwindigkeit:"},"v","=",{"$f":"IFERROR((G12*4000/((G10-2*G11)^2)/PI()),0)","v":{"v":1.3588120952453329,"d":"1.36"}},"[m/s]",{"$nulls":20},"315 x 18,7     SDR  17",315,18.7,"SDR  17",{"$nulls":4},"Bezeichnung","Bezeichnung","Description","Descrizione","Désignation :","Descripción","Tanımlama","обозначение","Oznaczenie","标记"]
[null,null,{"$f":"HLOOKUP($AR$1,$AQ$2:$BZ$999,9,0)","v":"Temperatur:"},null,"T","=",5,"[°C]",null,{"$f":"HLOOKUP($AR$1,$AQ$2:$BZ$999,30,0)","v":"Massenstrom:"},"m",null,{"$f":"IFERROR((G12*G15*3600),0)","v":{"v":36000.72760446998,"d":"36,001"}},"[kg/h]",{"$nulls":20},"355 x 21,1     SDR  17",355,21.1,"SDR  17",{"$nulls":4},"Winkel 90°","Winkel 90°","Elbow 90°","Angolo 90°","Coude 90°","Codo 90°","90° dirsek","отвод 90°","Kolano 90°","90ﾟ角"]
[null,null,{"$f":"HLOOKUP($AR$1,$AQ$2:$BZ$999,10,0)","v":"Dichte:"},null,"r","=",{"v":1.0000202112352772,"d":"1.00"},"[g/cm3]",{"$nulls":34},"Winkel 45°","Winkel 45°","Elbow 45°","Angolo 45°","Coude 45°","Codo 45°","45° dirsek","отвод 45°","Kolano 45°","45ﾟ角"]
[null,null,{"$f":"HLOOKUP($AR$1,$AQ$2:$BZ$999,11,0)","v":"kinematische Viskosität:"},null,"n","=",{"v":1.5161517003471,"d":"1.52"},"[mm2/s]",null,{"$f":"HLOOKUP($AR$1,$AQ$2:$BZ$999,31,0)","v":"Druckverlust Rohr:"},"DpR","=",{"$f":"M12*G13","v":{"v":17613.31032004211,"d":"17,613"}},"[Pa]",{"$nulls":28},"T-Stück Abzweig","T-Stück Abzweig","T-piece - branch flow","Diramazione \"T\"","Té de dérivation","Pieza T - flujo derivado","T-parçası - Çıkış","тройник на ответвление","Trójnik odejście","三通管 分支流"]
[{"$nulls":9},{"$f":"HLOOKUP($AR$1,$AQ$2:$BZ$999,32,0)","v":"Druckverlust Formteil:"},"DpF","=",{"$f":"SUM(G19:G27)","v":{"v":6462.426696634157,"d":"6,462"}},"[Pa]",{"$nulls":28},"T-Stück Durchgang","T-Stück Durchgang","T-piece - through flow","Passaggio \"T\"","Té de passage","Pieza T - flujo de cruce","T-parçası - Geçiş","тройник на проход","Trójnik przelot","三通管 通流"]
[null,null,{"$f":"HLOOKUP($AR$1,$AQ$2:$BZ$999,12,0)","v":"Bezeichnung"},{"$f":"HLOOKUP($AR$1,$AQ$2:$BZ$999,23,0)","v":"Symbol"},{"$f":"HLOOKUP($AR$1,$AQ$2:$BZ$999,24,0)","v":"Anzahl"},"","Dp",null,null,{"$f":"HLOOKUP($AR$1,$AQ$2:$BZ$999,33,0)","v":"Druckverlust Rohrleitung:"},"Dp","=",{"$f":"SUM(M16+M17)","v":{"v":24075.737016676267,"d":"24,076"}},"[Pa]",{"$nulls":28},"T-Stück Verteilung","T-Stück Verteilung","T-piece - flow splitting","Distributore \"T\"","Té de distribution","Pieza T - flujo dividido","T-parçası - Dağıtım","тройник на разделение потоков","Trónik rozdział","三通管 流分离"]
[null,null,{"$f":"HLOOKUP($AR$1,$AQ$2:$BZ$999,13,0)","v":"Winkel 90°"},null,5,1.3,{"$f":"IFERROR((E19*F19*($G$15/2)*$M$13^2*1000),0)","v":{"v":6000.824789731718,"d":"6,001"}},"[Pa]",null,null,"(1bar=105 Pa)","=",{"$f":"M18/10^5","v":{"v":0.24075737016676266,"d":"0.241"}},"[bar]",{"$nulls":28},"T-Stück Vereinigung","T-Stück Vereinigung","T-piece - flow combining","Congiunzione \"T\"","Té  union","Pieza T - flujo combinado","T-parçası - Birleşim","тройник на слияние потоков","Trónik odejście zbieżny","三通管 流整合"]
[null,null,{"$f":"HLOOKUP($AR$1,$AQ$2:$BZ$999,14,0)","v":"Winkel 45°"},null,null,0.5,0,"[Pa]",{"$nulls":3},{"$f":"SUM(U20+Y14)","v":0},{"$nulls":22},{"$f":"HLOOKUP($AR$1,$AQ$2:$BZ$999,37,0)","v":"Werte auf Medium Wasser zurücksetzen"},{"$nulls":7},"Reduzierung","Reduzierung","Reducer","Riduzione","Réduction","Reductor","Redüksiyon","переход","Zwężka","减缩件"]
[null,null,{"$f":"HLOOKUP($AR$1,$AQ$2:$BZ$999,15,0)","v":"T-Stück Abzweig"},null,null,1.3,0,"[Pa]",null,{"$f":"HLOOKUP($AR$1,$AQ$2:$BZ$999,34,0)","v":"Medium Wasser"},{"$nulls":24},{"$f":"HLOOKUP($AR$1,$AQ$2:$BZ$999,38,0)","v":"Nutzungsbedingungen"},{"$nulls":7},"Absperrschieber","Absperrschieber","Gate valve","Saracinesca","Vanne d'arrêt","Válvula de compuerta","Kesme vanası","запорный шибер","Zasuwa","截止阀"]
[null,null,{"$f":"HLOOKUP($AR$1,$AQ$2:$BZ$999,16,0)","v":"T-Stück Durchgang"},null,null,0.3,0,"[Pa]",null,{"$f":"HLOOKUP($AR$1,$AQ$2:$BZ$999,35,0)","v":"Dichte:"},"r","=",{"$f":"Anlage!F6/1000","v":{"v":1.0000202112352772,"d":"1.00"}},"[g/cm3]",{"$nulls":20},"Abfrage:",{"$f":"SUM(AJ27:AJ28)","v":2},{"$nulls":6},"Kugelhahn","Kugelhahn","Ball valve","Rubinetto sferico","Robinet à boisseau sphérique","Válvula de bola","Küresel vana","шаровой кран","Zawór kulowy","球阀"]
[null,null,{"$f":"HLOOKUP($AR$1,$AQ$2:$BZ$999,17,0)","v":"T-Stück Verteilung"},null,null,1.5,0,"[Pa]",null,{"$f":"HLOOKUP($AR$1,$AQ$2:$BZ$999,36,0)","v":"kinematische Viskosität:"},"n","=",{"$f":"(1.78*10^-6)/(1+0.0337*G14+0.000221*G14^2)*1000000","v":{"v":1.5161517003470961,"d":"1.52"}},"[mm2/s]",{"$nulls":20},{"$f":"HLOOKUP($AR$1,$AQ$2:$BZ$999,53,0)","v":"Bitte Werte benutzerdefiniertes Rohr eintragen:  "},{"$nulls":7},"Druckverlust Formteile gesamt","Druckverlust Formteile gesamt","Total pressure loss fittings","Perdita complessiva pezzi stampati","Perte de charges totale des raccords","Pérdida de presión total en accesorios","Fittinglerin toplam basınç kaybı","сумма потерь давления на местные сопротивления","Łączny spadek ciśnienia dla kształtek","型件总体的压力损失"]
[null,null,{"$f":"HLOOKUP($AR$1,$AQ$2:$BZ$999,18,0)","v":"T-Stück Vereinigung"},null,null,1.3,0,"[Pa]",{"$nulls":26},{"$f":"HLOOKUP($AR$1,$AQ$2:$BZ$999,54,0)","v":"Bitte benutzerdefinierte Werte löschen:"},{"$nulls":7},"Symbol","Symbol","Symbol","Symbol","Symbole","Simbolo","Sembol","символ","Symbol","标志"]
[null,null,{"$f":"HLOOKUP($AR$1,$AQ$2:$BZ$999,19,0)","v":"Reduzierung"},null,1,0.4,{"v":369.28152552195195,"d":"369"},"[Pa]",{"$nulls":26},{"$f":"HLOOKUP($AR$1,$AQ$2:$BZ$999,55,0)","v":"Benutzerdefiniert"},{"$nulls":7},"Anzahl","Anzahl","Quantity","Quantità","Quantité","Cantidad","Adet","количество","Ilość","数量"]
[null,null,{"$f":"HLOOKUP($AR$1,$AQ$2:$BZ$999,20,0)","v":"Absperrschieber"},null,null,0.5,0,"[Pa]",{"$nulls":26},"Benutzerdefiniert",{"$f":"IF(E6=AI2,1,\"0\")","v":"0"},{"$nulls":6},"Medium:","Medium:","Medium:","Fluido:","Fluide transporté :","Medio:","Akışkan:","транспортируемая среда:","Medium:","媒介："]
[null,null,{"$f":"HLOOKUP($AR$1,$AQ$2:$BZ$999,21,0)","v":"Kugelhahn"},null,1,0.1,{"v":92.32038138048799,"d":"92"},"[Pa]",{"$nulls":26},"Angabe da",{"$f":"IF(E8>0,1,\"0\")","v":1},{"$nulls":6},"Reynoldszahl:","Reynoldszahl:","Reynolds number:","Coefficiente Reynolds:","Nombre de Reynold:","Número Reynolds:","Reynolds-sayısı:","число Рейнольдса:","Liczba Reynoldsa","雷诺数："]
[null,null,{"$f":"HLOOKUP($AR$1,$AQ$2:$BZ$999,22,0)","v":"Druckverlust Formteile gesamt"},{"$nulls":3},{"$f":"SUM(G19:G27)","v":{"v":6462.426696634157,"d":"6,462"}},"[Pa]",{"$nulls":26},"Angabe di",{"$f":"IF(G8>0,1,\"0\")","v":1},{"$nulls":6},"Rohrreibungszahl:","Rohrreibungszahl:","Pipe friction coefficient:","Coefficiente di attrito del tubo:","Coefficient de rugosité tube :","Coeficiente de fricción de tubo:","Boru sürtünme katsayısı:","коэффициент шероховатости:","Współczynnik tarcia","管摩擦系数："]
[{"$nulls":42},"Rohrreibungsgefälle:","Rohrreibungsgefälle:","Head loss pipe:","Perdita di carico per attrito:","Coefficient de frottement tube :","Pérdida de carga de tubo:","Boru basınç düşümü:","удельные потери на трение:","Spadek hydrauliczny","管摩擦扬程损失："]
[{"$nulls":42},"Geschwindigkeit:","Geschwindigkeit:","Velocity:","Velocità:","Vitesse :","Velocidad: ","Hız:","скорость:","Prędkość","速度："]
[{"$nulls":34},{"$f":"AI37","v":"Version 1.3_03/17"},{"$nulls":7},"Massenstrom:","Massenstrom:","Flow rate by mass","Flusso di massa:","Débit massique :","Velocidad de flujo por masa:","Kütle debisi:","массовый расход:","Przepływ masowy","质量流量："]
[{"$nulls":42},"Druckverlust Rohr:","Druckverlust Rohr:","Pressure loss pipes","Perdita di pressione tubo:","Perte de charge tubes :","Pérdida de presión de tuberías:","Borunun basınç kaybı:","потери давления на трение:","Spadek ciśneinia dla rur","压力损失 管："]
[{"$nulls":34},"Versionsnachverfolgung",{"$nulls":7},"Druckverlust Formteil:","Druckverlust Formteil:","Pressure loss fittings","Perdita di pressione pezzi stampati:","Perte de charge raccords :","Pérdida de presión de accesorios:","Fittinglerin basınç kaybı:","потери давления на местные сопротивления:","Spadek ciśnienia dla kształtek","压力损失 型件："]
[{"$nulls":34},"Version 1.0_07/13","Erste Version mit Deutsch, Spanisch, Italienisch, Französisch",{"$nulls":6},"Druckverlust Rohrleitung:","Druckverlust Rohrleitung:","Pressure loss pipe section","Perdita di pressione conduttura:","Perte de charge tronçon :","Pérdida de presión de sección de tubería:","Boru hattının basınç kaybı:","потери давления в трубопроводе:","Spadek ciśnienia dla rurociągu","压力损失 管路："]
[{"$nulls":34},"Version 1.1_07/13","Aufnahme Türkisch und Hinweismeldung bei Nutzung nach dem 31.12.2015",{"$nulls":6},"Medium Wasser","Medium Wasser","Medium water","Fluido Acqua","Eau transportée","Agua media","Akışkan su:","теплоноситель вода","Medium woda","媒介水"]
[{"$nulls":34},"Version 1.2_09/14","Erweiterung Sprachen",{"$nulls":6},"Dichte:","Dichte:","Density:","Densità:","Densité :","Densidad:","Yoğunluk:","плотность:","Gęstość:","密度："]
[{"$nulls":34},"Version 1.3_03/17","Aufnahme Chinesisch",{"$nulls":6},"kinematische Viskosität:","kinematische Viskosität:","Kinematic viscosity:","Viscosità cinematica:","Viscosité cinématique :","Viscosidad cinemática:","Kinematik viskozite:","кинематическая вязкость","Lepkość kinematyczna","运动黏度："]
[{"$nulls":42},"Werte auf Medium Wasser zurücksetzen","Werte auf Medium Wasser zurücksetzen","Use values for water in entry fields","Inserire automaticamente nella tabella  i valori per densita e viscosità ","Prendre la valeur dans le champ de saisi","Usar valores para agua en los campos requeridos","Değerleri tekrar Su için güncelle","ввести значения коэффициентов для воды","Powrót do wartości medium woda","在输入区域使用水的值"]
[{"$nulls":42},"Nutzungsbedingungen","Nutzungsbedingungen","Terms & Conditions of use","Condizioni de utilizzo","Conditions d'utilisation","Térmnos y condiciones de uso","Kullanım koşulları","условия использования","Warunki użytkowania","使用条件"]
[{"$nulls":42},"www.rehau.de/raufrigo","www.rehau.de/raufrigo","www.rehau.com","www.rehau.com","www.rehau.com","www.rehau.com","www.rehau.com.tr","www.rehau.de/raufrigo","http://www.rehau.com/pl-pl","www.rehau.com"]
[{"$nulls":42},"laminare Strömung","laminare Strömung","laminar flow","flusso laminare","écoulement laminaire","flujo laminar","laminer akış","ламинарное течение","Przepływ laminarny","层流"]
[{"$nulls":42},"turbulente Strömung","turbulente Strömung","turbulent flow","flusso turbulento","écoulement turbulent","flujo turbulento","türbülanslı akış","турбулентное течение","Przepływ turbulentny","紊流"]
[{"$nulls":42},"hydraulisch glattes Rohr","hydraulisch glattes Rohr","hydraulic smooth pipe","tubo liscio","Tube hydraulique lisse","tubo liso hidráulico","hidrolik olarak düz boru","гидравлически гладкая труба","Rura gładka hydraulicznie","液压光滑管"]
[{"$nulls":42},"Rohr im Übergangsgebiet","Rohr im Übergangsgebiet","Pipe in transition area","tubo in  zona di transizione","tube de rugosité intermédiaire","Tubería en área de transición","hidrolik olarak düz boru","трубопровод в переходном режиме","Rura w obszarze przejścia","在过渡区的管"]
[{"$nulls":42},"hydraulisch rauhe Rohre","hydraulisch rauhe Rohre","hydraulic rough pipe","tubo ruvido","tube hydraulique rugueux","tubo rugoso hidráulico","hidrolik olarak pürüzlü boru","гидравлически шероховатая труба","Rura szorstka hydraulicznie","液压粗糙管"]
[{"$nulls":42},"REHAU SOFTWARE INDUSTRIEROHRSYSTEM RAUFRIGO","REHAU SOFTWARE INDUSTRIEROHRSYSTEM RAUFRIGO","REHAU SOFTWARE, INDUSTRIAL PIPING SYSTEM RAUFRIGO","REHAU SOFTWARE SISTEMA DIE TUBI INDUSTRIALI PREISOLATI RAUFRIGO ","SYSTEME DE TUBES INDUSTRIELS REHAU RAUFRIGO","SOFTWARE REHAU, SISTEMA DE TUBERIA INDUSTRIAL RAUFRIGO","RAUFRIGO ENDÜSTRİYEL BORU SİSTEMİ İÇİN REHAU YAZILIMI","ПРОГРАММНОЕ ОБЕСПЕЧЕНИЕ REHAU ДЛЯ СИСТЕМЫ ПРОМЫШЛЕННЫХ ТРУБОПРОВОДОВ RAUFRIGO","REHAU SOFTWARE INSTALACJE PRZEMYSŁOWE RAUFRIGO","瑞好软件，工业管道系统RAUFRIGO"]
[{"$nulls":42},"Haftungsausschluss","Haftungsausschluss","Disclaimer ","Disclaimer","Avertissement ","Renuncia","Sorumluluk beyanı","Защита авторских прав","Wykluczenie odpowiedzialności","免除责任"]
[{"$nulls":42},"Copyright © 2013","Copyright © 2013","Copyright © 2013","Copyright © 2013","Copyright © 2013","Derechos Reservados 2013","Copyright © 2013","Copyright © 2013","Copyright © 2013","版权©2013"]
[{"$nulls":42},"Alle Daten innerhalb dieser Webseite/Software sind urheberrechtlich geschützt und dürfen nicht ohne Zustimmung der Rechteinhaber verwendet werden. Die durch das Urheberrecht begründeten Rechte, insbesondere die der Übersetzung, des Nachdruckes, der Entnahme von Abbildungen, der Funksendungen, der Wiedergabe auf fotomechanischem oder ähnlichem Wege und der Speicherung in Datenverarbeitungsanlagen, bleiben vorbehalten.","Alle Daten innerhalb dieser Webseite/Software sind urheberrechtlich geschützt und dürfen nicht ohne Zustimmung der Rechteinhaber verwendet werden. Die durch das Urheberrecht begründeten Rechte, insbesondere die der Übersetzung, des Nachdruckes, der Entnahme von Abbildungen, der Funksendungen, der Wiedergabe auf fotomechanischem oder ähnlichem Wege und der Speicherung in Datenverarbeitungsanlagen, bleiben vorbehalten.","All data contained within this website/software is copyright protected and may not be used without the permission of the copyright holder. The rights afforded by the copyright, particularly those concerning translation, reprinting, extracting images, broadcasting, duplicating by photomechanical or similar means and storing in data processing systems, are reserved. ","Contact: info@rehau.com  ","Toutes les données dans ce site web / logiciels sont protégées par copyright et ne peuvent être utilisées sans l'autorisation du détenteur du copyright. Les droits d'auteur protègent la traduction, la réimpression, la réutilisation d'illustrations, de la radiodiffusion, la reproduction par des moyens photographiques ou similaires ainsi que le stockage dans des systèmes de traitement des données.","Todos los datos que aparecen en este sitio web / software están protegidos por Derechos Reservados y no pueden ser utilizados sin el consentimiento del titular del derecho de autor. Los derechos reconocidos por el derecho de autor, en particular las relacionadas a traducción, re impresión, extracción de imágenes, radiodifusión, duplicación en medios foto mecánicos o similar y el almacenamiento en sistemas de procesamiento de datos, son reservados.","Bu web sayfasının/yazılımın içerisindeki tüm verilerin kullanım hakkı saklıdır ve hak sahibinin onayı olmaksızın kullanılamaz. Telif hakkıyla ilişkilendirilen haklar, özellikle başka dillere çevrilmesi, yeniden basılması, radyo yayınlarının alınması, fotomekanik veya benzer yollarla aktarılması ve veri düzenleme sistemlerine kaydedilmesi gibi haklar korunmuştur. ","Все данные на этой интернет-странице / в программе находятся под защитой авторских  прав и не могут быть использованы без согласования с правообладателем. Защитой авторского права запрещается перевод, перепечатка, использование рисунков и иллюстраций, использование материалов в радио- и телепередачах, передача по фотомеханическим или аналогичным средствам и сохранение данных на электронных носителях.","Wszelkie dane zawarte na niniejszej stronie internetowej/w niniejszym oprogramowaniu są chronione prawem autorskim i nie mogą być wykorzystywane bez zgody właściciela praw autorskich. Prawa pochodne wobec praw autorskich, w szczególności prawo do przekładu, do przedruku, pobierania obrazów, przekazu drogą radiową, powielania sposobem fotomechanicznym lub innym i zapisywania danych w urządzeniach do przetwarzania danych, są zastrzeżone.","本网站/软件中包含的所有数据均受版权保护，未经版权所有者许可，不得使用。保留版权所赋予的权利，特别是关于翻译、重印、提取图像、广播、通过照相机械或类似装置复制和存储在数据处理系统中的权利。"]
[{"$nulls":42},"Kontakt: info@rehau.com ","Kontakt: info@rehau.com ","Contact: info@rehau.com  ","1. Il software IRS è stato ideato e realizzato su foglio di calcolo elettronico a tabella da Rehau con mera funzione di solo supporto di calcolo dei dati relativi alla progettazione di impianti termoidraulici, quali il diametro e lo spessore dei relativi componenti (tubi, etc.). ","Contact: info@rehau.com ","Contacto: info@rehau.com","İletişim: info@rehau.com","Контакт: info@rehau.com ","Kontakt: info@rehau.com ","联系：info@rehau.com"]
[{"$nulls":42},"Datenschutz: Alle innerhalb dieser Webseite vom Anwender eingegebenen und verarbeiteten Daten werden vertraulich gem. § 5 BDSG behandelt und nicht an Dritte weitergegeben. Die Daten werden nur zur Bearbeitung der Anfragen benutzt. ","Datenschutz: Alle innerhalb dieser Webseite vom Anwender eingegebenen und verarbeiteten Daten werden vertraulich gem. § 5 BDSG behandelt und nicht an Dritte weitergegeben. Die Daten werden nur zur Bearbeitung der Anfragen benutzt. ","Data protection: All data entered and processed by the user on this website will be handled with confidentiality in line with § 5 BDSG (German Data Protection Act) and not passed on to any third parties. The data will be used exclusively for dealing with the enquiries. ","2.Tutte le informazioni riportate nel software sono protette da copyright e non possono essere utilizzate senza il consenso del relativo titolare che è la medesima Rehau Spa, così come che tutti i diritti derivanti dal copyright, e in particolar modo la traduzione, la ristampa, lo stralcio di immagini, la trasmissione via etere, la riproduzione tramite dispositivi fotomeccanici o similari e l’archiviazione informatica, sono riservati. ","Protection des données: Toutes les données entrées dans ce site par l'utilisateur sont traitées comme des données confidentielles et non sont en aucun cas transmises à des tiers. Les données seront utilisées uniquement pour traiter les demandes. ","Protección de datos: Todos los datos introducidos y procesados por el usuario de este sitio web serán tratados de forma confidencial de acuerdo con el § 5 BDSG (Ley Alemana de protección de datos) y no serán transmitidos a terceros. Los datos serán utilizados exclusivamente para resolver las preguntas.","Veri emniyeti: Bu Web Sayfası içerisinde kullanıcı tarafından girilen ve işlenen veriler § 5 BDSG uyarınca gizli olarak tutular ve üçüncü şahıslara aktarılmaz. Veriler sadece taleplerin işlenebilmesi için kullanılır. ","Защита данных: Все данныые пользователя, обрабатываемые и вводимые на данную интернет-страницу сохраняют, согласно § 5 BDSG свою конфиденциальность и не подлежат передаче третьим лицам. Данные пользователя используются исключительно с целью обработки заказа.","Ochrona danych: Wszystkie dane, które Użytkownik poda na niniejszej stronie internetowej i zostaną przetworzone, są zgodnie z art. 39 ust. 2 ustawy o ochronie danych osobowych (Dz. U. z 2002 r. Nr 101, poz. 926 z późn. zm.) traktowane poufnie i nie są przekazywane osobom trzecim. Dane te wykorzystywane są wyłącznie do opracowania zapytań.","数据保护：用户在本网站上输入和处理的所有数据将根据§ 5 BDSG（德国数据保护法）进行保密处理，不会传递给任何第三方。数据将专门用于处理询价。"]
[{"$nulls":42},"Die Webseite/Software wird von den Herausgebern kostenlos zur Verfügung gestellt. Die Herausgeber übernehmen keinerlei Gewähr für die Aktualität, Korrektheit, zu Grunde gelegte Berechnungsformeln, Berechnungsergebnisse, Vollständigkeit oder Qualität der bereitgestellten Informationen. Haftungsansprüche gegen die Herausgeber und Autoren, die sich auf Schäden materieller oder ideeler Art beziehen, welche durch die Nutzung der dargebotenen Informationen bzw. durch Nutzung fehlerhafter oder unvollständiger Informationen verursacht wurden, sind grundsätzlich ausgeschlossen, sofern seitens der Herausgeber und Autoren kein nachweislich vorsätzliches oder grob fahrlässiges Verschulden vorliegt. Die Herausgeber behalten es sich ausdrücklich vor, Teile der Seiten oder den gesamten Inhalt ohne gesonderte Ankündigung zu verändern, zu ergänzen oder die Veröffentlichung zeitweise oder endgültig einzustellen. Aus der Veröffentlichung kann nicht entnommen werden, dass die verwendeten Bezeichnungen frei von Rechten Dritter sind. Sofern auf Verweisziele („Links“) direkt oder indirekt verwiesen wird, die außerhalb des Verantwortungsbereichs des Herausgebers/Autoren liegen, haften diese allenfalls dann, wenn sie von den Inhalten Kenntnis hatten, und es ihnen technisch möglich und zumutbar wäre, die Nutzung im Falle rechtswidriger Inhalte zu verhindern. Für darüber hinausgehende Inhalte und insbesondere für Schäden, die aus der Nutzung oder Nichtnutzung solcherart dargebotener Informationen entstehen, haftet allein der Anbieter dieser Seiten, nicht derjenige, der über Links auf die jeweilige Veröffentlichung lediglich verweist. Dieser Haftungsausschluss ist als Teil des Internetangebots dieser Seite / dieses Softwareangebots zu betrachten. Sofern Teile oder einzelne Formulierungen dieses Textes der geltenden Rechtslage nicht, nicht mehr oder nicht vollständig entsprechen sollten, bleiben die übrigen Teile des Dokuments in ihrem Inhalt und ihrer Gültigkeit davon unberührt.","Die Webseite/Software wird von den Herausgebern kostenlos zur Verfügung gestellt. Die Herausgeber übernehmen keinerlei Gewähr für die Aktualität, Korrektheit, zu Grunde gelegte Berechnungsformeln, Berechnungsergebnisse, Vollständigkeit oder Qualität der bereitgestellten Informationen. Haftungsansprüche gegen die Herausgeber und Autoren, die sich auf Schäden materieller oder ideeler Art beziehen, welche durch die Nutzung der dargebotenen Informationen bzw. durch Nutzung fehlerhafter oder unvollständiger Informationen verursacht wurden, sind grundsätzlich ausgeschlossen, sofern seitens der Herausgeber und Autoren kein nachweislich vorsätzliches oder grob fahrlässiges Verschulden vorliegt. Die Herausgeber behalten es sich ausdrücklich vor, Teile der Seiten oder den gesamten Inhalt ohne gesonderte Ankündigung zu verändern, zu ergänzen oder die Veröffentlichung zeitweise oder endgültig einzustellen. Aus der Veröffentlichung kann nicht entnommen werden, dass die verwendeten Bezeichnungen frei von Rechten Dritter sind. Sofern auf Verweisziele („Links“) direkt oder indirekt verwiesen wird, die außerhalb des Verantwortungsbereichs des Herausgebers/Autoren liegen, haften diese allenfalls dann, wenn sie von den Inhalten Kenntnis hatten, und es ihnen technisch möglich und zumutbar wäre, die Nutzung im Falle rechtswidriger Inhalte zu verhindern. Für darüber hinausgehende Inhalte und insbesondere für Schäden, die aus der Nutzung oder Nichtnutzung solcherart dargebotener Informationen entstehen, haftet allein der Anbieter dieser Seiten, nicht derjenige, der über Links auf die jeweilige Veröffentlichung lediglich verweist. Dieser Haftungsausschluss ist als Teil des Internetangebots dieser Seite / dieses Softwareangebots zu betrachten. Sofern Teile oder einzelne Formulierungen dieses Textes der geltenden Rechtslage nicht, nicht mehr oder nicht vollständig entsprechen sollten, bleiben die übrigen Teile des Dokuments in ihrem Inhalt und ihrer Gültigkeit davon unberührt.","This website/software is provided by the publishers free of charge. The publishers assume no liability concerning the topicality, correctness, underlying calculation formulae, calculation results, completeness or quality of the information provided. Any liability claims against the publishers and authors, which refer to material or non-material damage, and which may be caused by the usage of the information provided or, respectively, by the usage of any incorrect or incomplete information, are generally excluded except in cases where there is evidence of wilful or gross negligence on the part of the publishers and authors.  The publishers expressly reserve the right to amend, complement or delete parts of these Web pages or the entire content, or to temporarily suspend or cease in full its publication without any special announcement. Publication does not imply that the designations used are free of the rights of any third parties. Where direct or indirect reference is made to links to pages over which the publishers/authors have no control, these shall only be liable should they have had previous knowledge of the contents, and should it have been technically feasible and reasonable for them to have prevented their usage in the event of the contents being illegal. For any other contents and, in particular, for damages resulting from the use or non-use of information provided in this way, the publisher of this site is the only party liable and not those who just refer to the respective publication via links. This exemption of liability is to be considered a part of the Web site containing the link or reference to this page/software. Should any parts or individual formulations of this text not, no longer or not fully comply with applicable legal stipulations, the remaining parts of this document shall remain unaffected in their content and their validity. ","3. Il software IRS è messo a disposizione gratuitamente da Rehau e dai suoi curatori, i quali non forniscono alcuna garanzia in merito all'aggiornamento, alla correttezza, alle formule matematiche, alla completezza o alla qualità delle informazioni in esso contenute. 4. È esclusa ogni responsabilità di Rehau e dei curatori/autori del programma per danni materiali o immateriali derivanti dall'utilizzo delle informazioni fornite tramite il software ovvero da informazioni mancanti o incomplete. In particolare i soggetti medesimi sono esonerati da qualsivoglia responsabilità relativa ad errori di progettazione e/o misurazione, per i quali rimane unico responsabile il soggetto utilizzatore.  5. Rehau ed i curatori/autori del software si riservano espressamente il diritto di modificare senza preavviso parti o l'intero contenuto del programma, di integrarlo con aggiunte o di cessarne la pubblicazione in via temporanea o definitiva, senza alcun obbligo di comunicazione alcuna, rimanendo onere dell’utilizzatore di informarsi circa le eventuali modifiche di cui sopra. 6. Laddove parti di questo testo ovvero singole affermazioni in esso contenute siano in contrasto con le normative vigenti, anche in forma parziale o solo temporaneamente, sono fatte salve l'applicabilità dei contenuti e la validità delle parti restanti del documento. 7. Qualunque controversia in ordine alla interpretazione ed alla esecuzione dei rapporti connessi al servizio reso sarà devoluta al Tribunale di Milano quale foro competente in via esclusiva ed assoggettata alla legge italiana.","Le site / logiciel est fournis gratuitement par les éditeurs. L'éditeur décline toute responsabilité quant à l'actualité, l'exactitude, l'exhaustivité ou la qualité des informations fournies. L’éditeur décline également toute responsabilité quant aux formules mathématiques utilisées et aux résultats des calculs. L’éditeur et les auteurs déclinent toute responsabilité quant aux dommages de toute nature qui pourraient être causés par l'utilisation d'informations erronées ou incomplètes contenues dans le site/ logiciel et ceci sauf en cas de dol ou de faute lourde. Les éditeurs se réservent le droit de modifier sans préavis tout ou parties du contenu du site ainsi que de modifier temporairement ou de cesser définitivement sa publication. Les noms et désignations sont protégés par le droit d’auteur dès la publication du Site/ logiciel. Les références («liens») fournies directement ou indirectement sont hors du champ de responsabilité de l'éditeur / auteurs. Ces derniers sont tout au plus responsables du contenu dont ils avaient connaissance dans la mesure où il est techniquement possible et raisonnable pour eux d’empêcher l'utilisation de contenus illégaux. Le contenu de ces pages accessibles par les liens depuis le Site/ logiciel, et en particulier les dommages pouvant résulter de l'utilisation ou la non-utilisation de ces informations relèvent uniquement et entièrement de la responsabilité du fournisseur de ces pages et informations tierces. Cet avertissement doit être considéré comme faisant partie intégrante du Site/ logiciel et des offres en résultant.  cette déclaration ne sont pas ou ne sont plus légales, correctes ou pleinement conformes, le contenu des parties restantes du document demeurent cependant valides. ","Este sito web / software es proporcionada por los editores de forma gratuita. Los editores no asumen ninguna resposabilidad con respecto a la actualidad, exactitud, fórmulas de cálculo no visibles, resultados de cálculo, integridad o calidad de la información proporcionada. Cualquier reclamación en contra de los editores y autores que se relacione a daños materiales o no materiales, y que deriven en el uso de la información proporcionada o, en su defecto, por el uso de información incorrecta o incompleta, son generalmente excluidas, excepto en los casos en los que exista evidencia de negligencia voluntaria y/o grave por parte de los editores y autores. Los editores se reservan el derecho de modificar, complementar o eliminar partes de estas páginas web o de todo el contenido, o para suspender o cesar por completo su publicación sin anuncio especial temporal. La publicación no implica que las denominaciones utilizadas estén libres de los derechos de terceros. Cuando se haga referencia directa o indirecta a los enlaces a las páginas sobre las que los editores / autores no tienen ningún control, serán responsables sólo en caso de que hayan tenido conocimiento previo de los contenidos, y en caso de que haya sido técnicamente posible y razonable el impedimento de su uso en el caso que los contenidos sean ilegales. Para cualquier otro contenido y, en especial por los daños ocasionados por el uso o no uso de la información proporcionada en esta forma, el editor de este sitio es el único responsable y no aquellos a los que sólo hacen referencia las publicaciones a través de enlaces. Esta excención de responsabilidad debe considerarse como parte de la página Web que contiene el enlace o referencia de la página / software. En caso de que cualquier parte o formulaciones individuales de este texto no cumplan a cabalidad con las estipulaciones legales aplicables, las partes restantes del documento no se verán afectadas en su contenido y validez.","Web sitesi/yazılım yayıncı tarafından ücretsiz olarak sağlanmıştır. Yayıncı esas alınan hesaplama formüllerinin güncelliği ve doğruluğu, hesaplama sonuçları, sağlanan bilgilerin tamlığı ve kalitesi hakkında hiçbir sorumluluk kabul etmez. Sağlanan hatalı veya eksik bilgilerin kullanılması nedeniyle oluşan maddi ve manevi hasarlar ile ilgili olarak yazarlar ve yayıncılara karşı sorumluluk talepleri, yayıncıların ve yazarların kasıtları veya ağır ihmalleri söz konusu olmadığı sürece kabul edilmez. Yayıncılar herhangi bir zamanda, sayfaların bölümlerini veya içeriğin tamamını önceden herhangi bir bildirimde bulunmaksızın, değiştirebilir, tamamlayabilir veya yayınlamayı geçici veya kalıcı olarak durdurabilir. Yayınlanan içerikte kullanılan tanımlarda üçüncü kişilerin hakları mevcut olabilmektedir. Yayıncıların/yazarların sorumluluk alanı dışında bulanan yönlendirme hedeflerine (\"Links\") doğrudan veya dolaylı olarak atıfta bulunulması durumunda yayıncılara/yazarlara bu sayfaların içeriği hakkında ancak bilgi sahibi olmaları durumunda ve bu yasal olmayan içeriklerin kullanımını teknik açıdan engelleyecebilecek durumda olmaları halinde sorumluluk yüklenebilir.  Bunların haricindeki içerikler ve de bu tür sunulan bilgilerin kullanılması ya da kullanılmaması nedeniyle ortaya çıkacak olan zararlardan yalnızca yönlendirilmiş olan web sitesinin sunucuları sorumludur, ilgili yayına kendi sayfasındaki Linkler aracılığıyla sadece işaret eden web sitesi sunucusu sorumlu değildir. İşbu feragatname bu sayfanın / bu yazılımın internet sunumunun bir parçasıdır. İşbu metnin bölümlerinin veya münferit ifadelerinin geçerli mevzuata tam olarak uygun olmaması durumunda belgenin geri kalan içeriği ve geçerliliği bundan etkilenmez.","Интернет-страница / программное обеспечение предоставляется издателями бесплатно. При этом издатели не несут ответственности за актуальность, корректность положенных в основу расчетных формул, результатов расчета, полноту или качество предоставляемой информации. Издатели или авторы не несут ответственности за материальный или моральный ущерб, произошедший при использовании предоставляемой информации или при использовании ошибочной или неполной информации до тех пор, пока убедительно не доказана их вина или халатность. Издатели не имеют права без особого согласования вносить изменения или дополнения в страницы, части страниц, а также приостанавливать или прекращать издание. Из изданий нельзя установить, затрагиваются ли обозначениях права третьих лиц. Если ссылка прямо или косвенно отсылает в области, находящиеся вне зоны ответственности издателя или автора, то последние несут ответственность только в том случае, если им было известно содержание и у них была техническая возможность предотвратить использование в случае нарушения прав. За выходящую за данные рамки информацию, а особенно за ущерб, возникший из-за использования или неиспользования предлагаемой информации ответственность несет только автор данных страниц, но ни в коем случае тот, кто сделал ссылку на данную информацию. Данную информацию по защите авторских прав следует рассматривать как часть интернет-продукта данной страницы или программного обеспечения. Если отдельные части данного текста или формулировки уже не соответствуют или не полностью соответствуют действующим правовым нормам, то остальные части сохраняют свою актуальность.","Wydawcy udostępniają niniejszą stronę internetową/oprogramowanie nieodpłatnie. Wydawcy nie ponoszą odpowiedzialności za aktualność, poprawność, formuły obliczeniowe, wyniki obliczeń, kompletność i jakość udostępnianych informacji.\nWydawcy i Autorzy nie ponoszą odpowiedzialności za ewentualne materialne i niematerialne szkody spowodowane wykorzystaniem przedstawionych informacji względnie wskutek wykorzystania błędnej lub niekompletnej informacji, o ile nie będzie to spowodowane udokumentowanym umyślnym działaniem lub rażącym niedbalstwem Wydawców i Autorów.\nWydawcy zastrzegają sobie wyraźnie możliwość zmiany, uzupełnienia części stron lub całej treści bez oddzielnej zapowiedzi lub możliwość czasowego lub ostatecznego wstrzymania publikacji. Ponadto zwracają uwagę, że użyte w publikacji terminy mogą być obciążone prawami osób trzecich.Jeżeli publikacja odsyła w sposób pośredni lub bezpośredni („linki”) do stron leżących poza obszarem odpowiedzialności Wydawców/Autorów, odpowiadają oni tylko wtedy, gdy wiedzieli o ich treści i w przypadku treści niezgodnych z prawem byli w stanie technicznie zapobiec ich użytkowaniu. Za treści wykraczające ponad to, a w szczególności za szkody powstałe przez wykorzystanie bądź niewykorzystanie tego typu przedstawionych informacji, odpowiada wyłącznie osoba oferująca te strony, a nie ten, który poprzez linki jedynie odsyła do danej publikacji. To wykluczenie odpowiedzialności jest częścią oferty internetowej niniejszej strony. Jeżeli części lub pojedyncze sformułowania niniejszego tekstu nie są lub już nie są zgodne z obowiązującym stanem prawnym, bądź mu nie w pełni odpowiadają, nie narusza to pozostałych postanowień, które zachowują swoją ważność.","本网站/软件由发行商免费提供。发行商不对所提供信息的主题、正确性、基本计算公式、计算结果、完整性或质量承担任何责任。任何针对发布商和作者的责任索赔，涉及重大或非重大损害，并且可能由使用提供的信息或使用任何不正确或不完整的信息造成的，通常排除，除非发布商和作者有故意或重大疏忽的证据的情况。出版商明确保留修改、补充或删除这些网页部分或整个内容的权利，或暂时停止或停止其出版，而无需任何特别的公告。出版不意味着所使用的名称没有任何第三方的权利。在直接或间接引用出版商/作者无法控制的页面的链接时，这些内容只有在对内容具有先前知识的情况下才应承担责任，如果它们在技术上可行且合理，其在内容是非法的情况下的使用。对于任何其他内容，特别是对因使用或不使用以这种方式提供的信息所造成的损失，本网站的发布者是唯一的一方责任，而不是那些谁通过链接参考相应的出版物。此免责声明将被视为网站的一部分，其中包含本网页/软件的链接或引用。如果本文件的任何部分或个别表述不再或不完全符合适用的法律规定，则本文档的其余部分在其内容和有效性方面不受影响。"]
[{"$nulls":42},"Nutzungsbedingungen akzeptieren","Nutzungsbedingungen akzeptieren","Accept terms and conditions","Prendere atto ed accettare tutte e singole condizioni di utilizzo","Accepté conditions d'utilisation","Acepto términos y condiciones.","Kullanım koşullarını kabul et","С условиями применения согласен","Akceptacja warunków użytkowania","接受使用条件"]
[{"$nulls":42},"Bitte Werte benutzerdefiniertes Rohr eintragen:  ","Bitte Werte benutzerdefiniertes Rohr eintragen:  ","Please insert values of user-defined pipe:","Inserire i valori per tubazione richiesta:","Entrer les valeurs du tube personnalisé choisi:","Favor de ingresar valores de tubería definidos por el usuario:","Lütfen kullanıcı tanımlı borunun değerlerini giriniz:","Ввести значения коэффициентов для трубы пользователя","Proszę podać wartości zdefiniowane przez użytkownika:","请将用户自定义的管路值填入："]
[{"$nulls":42},"Bitte benutzerdefinierte Werte löschen:","Bitte benutzerdefinierte Werte löschen:","Please delete values of user-defined pipe:","Eliminare i valori inseriti:","Supprimer les valeurs personnalisées:","Favor de borrar valores de tubería definidos por el usuario:","Lütfen kullanıcı tanımlı değerleri silin:","Удалить значения коэффициентов для трубы пользователя","Proszę usunąć wartości zdefiniowane przez użytkownika:","请将用户自定义值删除："]
[{"$nulls":42},"Benutzerdefiniert","Benutzerdefiniert","User-defined","Personalizzabile dall'utente","Choix personnalisé","Definido por el usuario","Kullanıcı tanımlı","Значения пользователя","Zdefiniowane przez użytkownika","用户自定义的"]
[{"$nulls":41},{"$f":"HLOOKUP($AR$1,$AQ$2:$BZ$999,56,0)","v":"           Bitte beachten Sie die mit Nutzung dieses Tools akzeptierten Nutzungsbedingungen."},"           Bitte beachten Sie die mit Nutzung dieses Tools akzeptierten Nutzungsbedingungen.","           Bitte beachten Sie die mit Nutzung dieses Tools akzeptierten Nutzungsbedingungen.","           Please note our terms and conditions you accept by using this software tool. ","           Durante l’uso del Tool si prega di rispettare tutte le singole condizioni d‘utilizzo già accettate.","           Merci d'observer les conditions d'utilisation, que vous avez acceptées avant l'utilisation de cet outil de calcul.","           Favor de tomar en cuenta nuestros términos y condiciones que Usted acepta al utilizar esta herramienta de software.","           Lütfen bu dokümanın kullanımı ile kabul ettiğiniz kullanım koşullarını dikkate alınız.","           Пожалуйста соблюдайте подтвержденные ранее условия использования данного инструмента","           Proszę zwrócić uwagę, iż przez użycie niniejszego narzędzia akceptują Państwo warunki użytkowania","请注意我们使用此软件工具接受的条款和条件"]
[{"$nulls":41},{"$f":"HLOOKUP($AR$1,$AQ$2:$BZ$999,57,0)","v":"Bitte kontaktieren Sie uns unter www.rehau.com, um die neuste Version des REHAU Berechnungstools zu erhalten. "},"Bitte kontaktieren Sie uns unter www.rehau.com, um die neuste Version des REHAU Berechnungstools zu erhalten. ","Bitte kontaktieren Sie uns unter www.rehau.com, um die neuste Version des REHAU Berechnungstools zu erhalten. ","Please contact REHAU at www.rehau.com to receive the latest version of the REHAU calculation software.","Si prega di contattare REHAU per ricevere l'ultima versione del software di calcolo REHAU. Per le nostre informazioni di contatto vedere www.rehau.com. ","Veuillez nous contacter pour obtenir la dernière version du programme de dimensionnement REHAU. Vous trouverez nos coordonnées sur notre site internet www.rehau.com.","Por favor, póngase en contacto con nosotros para que le podamos enviar la última versión de la herramienta de cálculo REHAU. La información de contacto la puede encontrar en www.rehau.com.","REHAU hesaplama dokümanının güncel versiyonunu size iletebilmemiz için lütfen bizimle temasa geçiniz. İletişim bilgilerimizi www.rehau.com.tr adresinde bulabilirsiniz. ","Пожалуйста, свяжитесь с нами на www.rehau.com, чтобы получить новую версию расчетных программ REHAU.","Prosimy o kontakt poprzez www.rehau.pl celem uzyskania najnowszej wersji narzędzi obliczeniowych REHAU.","请您在www.rehau.com下联系我们，从而得到最新版本的瑞好计算软件。"]
[]
[]
[]
[]
[]
[{"$nulls":46},"  "]

{"sheet":"Anlage","index":2,"n_rows":29,"n_cols":14,"rows_kept":29,"hidden":true}
["Dichteberechnung Wasser"]
[]
["si =",{"$f":"F4/221.287","v":0.004519018288467013},null,null,"T",{"$f":"RAUFRIGO!G14","v":5}]
["ta =",{"$f":"(F3+273.15)/647.3","v":0.4297080179205932},null,null,"p",1]
["gu =",{"$f":"370000000-312219900*(B4^2)-199985*(B4^-6)","v":280583341.81253403}]
["gw =",{"$f":"B5+((1.72*(B5^2)+13629260000000000*(B3-1.500705*B4))^0.5)","v":636508922.0237849},null,null,"Dichte",{"$f":"1/B7","v":{"v":1000.0202112352772,"d":"1000.0 kg/m3"}}]
["kv =",{"$f":"0.417/(B6^(1/3.4))-0.0001139706+0.00009949927*B4+((0.6537154-B4)^2)*(0.00007241165+((0.6537154-B4)^8)*0.7676621)-0.00000000001052358*(62.5+13.10268*B3+(B3^2))/(0.000015108+(B4^11))","v":{"v":9.9997978917320857E-4,"d":"0.00099998"}}]
[]
[]
[]
[null,null,"lamb0","lamb1","lamb2","lamb3","lamb4","lamb5","lamb6","lamb7","lamb8","lamb9","lamb10","Fehler"]
["k=",{"v":0.007,"d":"0.007 "},{"v":0.1,"d":"0.1 "},{"$f":"(-2*LOG((($B$12/$B$13)/3.71)+(2.51/($B$14*(C12)^0.5))))^(-2)","v":{"v":0.015984669122503157,"d":"0.015985 "}},{"$f":"(-2*LOG((($B$12/$B$13)/3.71)+(2.51/($B$14*(D12)^0.5))))^(-2)","v":{"v":0.019236972538322655,"d":"0.019237 "}},{"v":0.0188488990590924,"d":"0.018849 "},{"v":0.01889088041230162,"d":"0.018891 "},{"v":0.018886288839776784,"d":"0.018886 "},{"v":0.018886790428167415,"d":"0.018887 "},{"v":0.018886735626948155,"d":"0.018887 "},{"v":0.018886741614189566,"d":"0.018887 "},{"v":0.018886740960059673,"d":"0.018887 "},{"v":0.01888674103152595,"d":"0.018887 "},{"$f":"(M12-L12)*100/M12","v":{"v":3.7839390724506752E-7,"d":"0.0000004 "}}]
["di=",{"$f":"RAUFRIGO!G10-(2*RAUFRIGO!G11)","v":96.8}]
["Re=",{"$f":"RAUFRIGO!M6","v":{"v":86754.51855486212,"d":"86755"}},"Fehler",{"$f":"N12","v":{"v":3.7839390724506752E-7,"d":"0.0000004 "}}]
[null,null,"l=",{"$f":"M12","v":{"v":0.01888674103152595,"d":"0.01889"}}]
[]
[]
[null,"SDR",11,"SDR",7.4,"Zähler"]
[{"$nulls":3},{"v":16,"d":"16.0"},2.2,{"v":1,"d":"1.0"}]
[null,{"v":20,"d":"20.0"},1.9,{"v":20,"d":"20.0"},2.8]
[null,{"v":25,"d":"25.0"},2.3,{"v":25,"d":"25.0"},3.5]
[null,{"v":32,"d":"32.0"},2.9,{"v":32,"d":"32.0"},4.4]
[null,{"v":40,"d":"40.0"},3.7,{"v":40,"d":"40.0"},5.5]
[null,{"v":50,"d":"50.0"},4.6,{"v":50,"d":"50.0"},6.9]
[null,{"v":63,"d":"63.0"},5.8,{"v":63,"d":"63.0"},8.7]
[null,{"v":75,"d":"75.0"},6.8]
[null,{"v":90,"d":"90.0"},8.2]
[null,{"v":110,"d":"110.0"},{"v":10,"d":"10.0"}]
[null,{"v":160,"d":"160.0"},14.6]